fUST/lending_fUST_20250709
["ID","MTS","AMOUNT","RATE_DAILY","PERIOD"]
[370387585,1751991044091,-460.0,0.00019726,2]
[370387586,1751991044100,-1204.41,0.00019726,2]
[370387587,1751991044109,-460.0,0.00019726,2]
[370387588,1751991044119,-1609.96,0.00019726,2]
[370387589,1751991044128,-570.12,0.00019726,2]
[370387590,1751991044138,-460.0,0.00019726,2]
[370387591,1751991044147,-460.0,0.00019726,2]
[370387592,1751991044156,-460.0,0.00019726,2]
[370387593,1751991044165,-460.0,0.00019726,2]
[370387594,1751991044174,-494.76,0.00019726,2]
[370387595,1751991044183,-460.0,0.00019726,2]
[370387596,1751991044193,-460.0,0.00019726,2]
[370387597,1751991044203,-460.0,0.00019726,2]
[370387598,1751991044213,-460.0,0.00019726,2]
[370387599,1751991044222,-460.0,0.00019726,2]
[370387600,1751991044231,-460.0,0.00019726,2]
[370387601,1751991044241,-460.0,0.00019726,2]
[370387602,1751991044250,-460.0,0.00019726,2]
[370387603,1751991044260,-460.0,0.00019726,2]
[370387604,1751991044270,-460.0,0.00019726,2]
[370387605,1751991044279,-460.0,0.00019726,2]
[370387606,1751991044289,-561.0,0.00019726,2]
[370387607,1751991044298,-460.0,0.00019726,2]
[370387608,1751991044307,-743.22,0.00019726,2]
[370387609,1751991044317,-460.0,0.00019726,2]
[370387610,1751991044326,-460.0,0.00019726,2]
[370387611,1751991044337,-460.0,0.00019726,2]
[370387612,1751991044346,-1181.82,0.00019726,2]
[370387613,1751991044355,-460.0,0.00019726,2]
[370387614,1751991044365,-460.0,0.00019726,2]
[370387615,1751991044374,-460.0,0.00019726,2]
[370387616,1751991044383,-460.0,0.00019726,2]
[370387617,1751991044393,-460.0,0.00019726,2]
[370387618,1751991044403,-460.0,0.00019726,2]
[370387619,1751991044413,-460.0,0.00019726,2]
[370387620,1751991044423,-460.0,0.00019726,2]
[370387621,1751991044433,-460.0,0.00019726,2]
[370387622,1751991044442,-460.0,0.00019726,2]
[370387623,1751991044452,-1281.64,0.00019726,2]
[370387624,1751991044465,-602.4,0.00019726,2]
[370387625,1751991044476,-460.0,0.00019726,2]
[370387626,1751991044485,-663.89,0.00019726,2]
[370387627,1751991044495,-460.0,0.00019726,2]
[370387628,1751991044505,-1194.82,0.00019726,2]
[370387629,1751991044514,-1851.08,0.00019726,2]
[370387630,1751991044524,-460.0,0.00019726,2]
[370387631,1751991044533,-460.0,0.00019726,2]
[370387632,1751991044544,-1446.29,0.00019726,2]
[370387633,1751991044554,-460.0,0.00019726,2]
[370387634,1751991044563,-460.0,0.00019726,2]
[370387635,1751991044573,-460.0,0.00019726,2]
[370387636,1751991044583,-460.0,0.00019726,2]
[370387637,1751991044593,-460.0,0.00019726,2]
[370387638,1751991044602,-490.97,0.00019726,2]
[370387639,1751991044612,-460.0,0.00019726,2]
[370387640,1751991044621,-740.17,0.00019726,2]
[370387641,1751991044632,-460.0,0.00019726,2]
[370387642,1751991044641,-460.0,0.00019726,2]
[370387643,1751991044651,-460.0,0.00019726,2]
[370387644,1751991044661,-1397.61,0.00019726,2]
[370387645,1751991044671,-531.06,0.00019726,2]
[370387646,1751991044680,-460.0,0.00019726,2]
[370387647,1751991044689,-460.0,0.00019726,2]
[370387648,1751991044698,-460.0,0.00019726,2]
[370387649,1751991044707,-460.0,0.00019726,2]
[370387650,1751991044717,-500.0,0.00019786,2]
[370387651,1751991044726,-500.0,0.00019792,2]
[370387652,1751991044736,-2226.15026749,0.00019866,2]
[370387653,1751991044746,-500.0,0.00019878,2]
[370387654,1751991044755,-151.0,0.000199,2]
[370387655,1751991044765,-657482.73986,0.00019927,2]
[370387656,1751991044774,-692.54,0.00019928,3]
[370387657,1751991044783,-346.28,0.00019928,3]
[370387658,1751991044793,-500.0,0.00019971,2]
[370387659,1751991044802,-460.0,0.0002,2]
[370387660,1751991044812,-460.0,0.0002,2]
[370387661,1751991044821,-460.0,0.0002,2]
[370387662,1751991044831,-460.0,0.0002,2]
[370387663,1751991044841,-460.0,0.0002,2]
[370387664,1751991044850,-460.0,0.0002,2]
[370387665,1751991044860,-460.0,0.0002,2]
[370387666,1751991044869,-460.0,0.0002,2]
[370387667,1751991044878,-460.0,0.0002,2]
[370387668,1751991044887,-460.0,0.0002,2]
[370387669,1751991044897,-460.0,0.0002,2]
[370387670,1751991044906,-460.0,0.0002,2]
[370387671,1751991044916,-460.0,0.0002,2]
[370387672,1751991044925,-460.0,0.0002,2]
[370387673,1751991044934,-351.176039,0.0002,2]
[370387674,1751991044943,-460.0,0.0002,2]
[370387675,1751991044953,-460.0,0.0002,2]
[370387676,1751991044962,-460.0,0.0002,2]
[370387677,1751991044972,-460.0,0.0002,2]
[370387678,1751991044982,-460.0,0.0002,2]
[370387679,1751991044993,-460.0,0.0002,2]
[370387680,1751991045002,-460.0,0.0002,2]
[370387681,1751991045013,-460.0,0.0002,2]
[370387682,1751991045022,-460.0,0.0002,2]
[370387683,1751991045031,-460.0,0.0002,2]
[370387684,1751991045041,-322.79155818,0.0002,2]
[370387685,1751991045050,-221.64365544,0.0002,2]
[370387686,1751991045060,-571.78,0.0002,2]
[370387687,1751991045069,-460.0,0.0002,2]
[370387688,1751991045079,-460.0,0.0002,2]
[370387689,1751991045090,-460.0,0.0002,2]
[370387690,1751991045100,-460.0,0.0002,2]
[370387691,1751991045109,-460.0,0.0002,2]
[370387692,1751991045119,-460.0,0.0002,2]
[370387693,1751991045128,-460.0,0.0002,2]
[370387694,1751991045138,-460.0,0.0002,2]
[370387695,1751991045147,-460.0,0.0002,2]
[370387696,1751991045157,-460.0,0.0002,2]
[370387697,1751991045166,-460.0,0.0002,2]
[370387698,1751991045176,-460.0,0.0002,2]
[370387699,1751991045185,-2180.96,0.0002,2]
[370387700,1751991045194,-460.0,0.0002,2]
[370387701,1751991045203,-460.0,0.0002,2]
[370387702,1751991045212,-1474.50013849,0.0002,2]
[370387703,1751991045222,-578.19,0.0002,2]
[370387704,1751991045232,-944.08,0.0002,2]
[370387705,1751991045241,-460.0,0.0002,2]
[370387706,1751991045250,-460.0,0.0002,2]
[370387707,1751991045259,-404.27042649,0.0002,2]
[370387708,1751991045268,-460.0,0.0002,2]
[370387709,1751991045278,-460.0,0.0002,2]
[370387710,1751991045287,-460.0,0.0002,2]
[370387711,1751991045296,-886.41,0.0002,2]
[370387712,1751991045306,-460.0,0.0002,2]
[370387713,1751991045316,-460.0,0.0002,2]
[370387714,1751991045326,-460.0,0.0002,2]
[370387715,1751991045336,-460.0,0.0002,2]
[370387716,1751991045345,-460.0,0.0002,2]
[370387717,1751991045355,-1930.55,0.0002,2]
[370387718,1751991045364,-628.55,0.0002,2]
[370387719,1751991045374,-460.0,0.0002,2]
[370387720,1751991045383,-460.0,0.0002,2]
[370387721,1751991045393,-1204.41,0.0002,2]
[370387722,1751991045402,-1609.96,0.0002,2]
[370387723,1751991045558,-570.12,0.0002,2]
[370387724,1751991045568,-460.0,0.0002,2]
[370387725,1751991045578,-460.0,0.0002,2]
[370387726,1751991045588,-460.0,0.0002,2]
[370387727,1751991045597,-494.76,0.0002,2]
[370387728,1751991045607,-460.0,0.0002,2]
[370387729,1751991045616,-460.0,0.0002,2]
[370387730,1751991045626,-460.0,0.0002,2]
[370387731,1751991045635,-460.0,0.0002,2]
[370387732,1751991045644,-460.0,0.0002,2]
[370387733,1751991045654,-460.0,0.0002,2]
[370387734,1751991045663,-460.0,0.0002,2]
[370387735,1751991045673,-460.0,0.0002,2]
[370387736,1751991045682,-460.0,0.0002,2]
[370387737,1751991045691,-460.0,0.0002,2]
[370387738,1751991045700,-460.0,0.0002,2]
[370387739,1751991045710,-460.0,0.0002,2]
[370387740,1751991045719,-743.22,0.0002,2]
[370387741,1751991045729,-460.0,0.0002,2]
[370387742,1751991045738,-460.0,0.0002,2]
[370387743,1751991045747,-460.0,0.0002,2]
[370387744,1751991045757,-1181.82,0.0002,2]
[370387745,1751991045767,-460.0,0.0002,2]
[370387746,1751991045776,-461.19135201,0.0002,2]
[370387747,1751991045785,-460.0,0.0002,2]
[370387749,1751991045795,-460.0,0.0002,2]
[370387751,1751991045804,-460.0,0.0002,2]
[370387753,1751991045814,-460.0,0.0002,2]
[370387755,1751991045823,-460.0,0.0002,2]
[370387757,1751991045833,-460.0,0.0002,2]
[370387759,1751991045843,-460.0,0.0002,2]
[370387761,1751991045852,-460.0,0.0002,2]
[370387763,1751991045861,-1281.64,0.0002,2]
[370387765,1751991045871,-602.4,0.0002,2]
[370387767,1751991045881,-460.0,0.0002,2]
[370387769,1751991045890,-663.89,0.0002,2]
[370387771,1751991045899,-460.0,0.0002,2]
[370387773,1751991045909,-1194.82,0.0002,2]
[370387775,1751991045918,-1851.08,0.0002,2]
[370387777,1751991045928,-460.0,0.0002,2]
[370387779,1751991045937,-460.0,0.0002,2]
[370387781,1751991045947,-1446.29,0.0002,2]
[370387783,1751991045956,-460.0,0.0002,2]
[370387785,1751991045965,-460.0,0.0002,2]
[370387787,1751991045975,-460.0,0.0002,2]
[370387789,1751991045984,-460.0,0.0002,2]
[370387791,1751991045994,-460.0,0.0002,2]
[370387793,1751991046003,-490.97,0.0002,2]
[370387795,1751991046012,-460.0,0.0002,2]
[370387797,1751991046022,-740.17,0.0002,2]
[370387799,1751991046031,-460.0,0.0002,2]
[370387801,1751991046040,-460.0,0.0002,2]
[370387803,1751991046049,-460.0,0.0002,2]
[370387805,1751991046058,-1397.61,0.0002,2]
[370387807,1751991046068,-531.06,0.0002,2]
[370387809,1751991046077,-460.0,0.0002,2]
[370387811,1751991046088,-460.0,0.0002,2]
[370387813,1751991046097,-460.0,0.0002,2]
[370387815,1751991046106,-1000.0,0.00020034,2]
[370387817,1751991046115,-1000.0,0.00020034,2]
[370387819,1751991046125,-500.0,0.00020063,2]
[370387821,1751991046134,-151.0,0.000201,4]
[370387823,1751991046143,-151.0,0.000201,4]
[370387825,1751991046153,-2226.15026749,0.00020107,2]
[370387827,1751991046163,-500.0,0.00020155,2]
[370387829,1751991046172,-277.101717,0.00020187,2]
[370387831,1751991046181,-151.0,0.000202,4]
[370387833,1751991046190,-72538.70347893,0.00020211,2]
[370387835,1751991046200,-420.0,0.00020243,2]
[370387837,1751991046209,-500.0,0.00020248,2]
[370387839,1751991046218,-460.0,0.00020273,2]
[370387841,1751991046228,-460.0,0.00020273,2]
[370387843,1751991046237,-460.0,0.00020273,2]
[370387845,1751991046246,-460.0,0.00020273,2]
[370387847,1751991046255,-460.0,0.00020273,2]
[370387849,1751991046264,-460.0,0.00020273,2]
[370387851,1751991046275,-460.0,0.00020273,2]
[370387853,1751991046284,-460.0,0.00020273,2]
[370387855,1751991046293,-460.0,0.00020273,2]
[370387857,1751991046303,-460.0,0.00020273,2]
[370387859,1751991046312,-460.0,0.00020273,2]
[370387861,1751991046321,-460.0,0.00020273,2]
[370387863,1751991046330,-460.0,0.00020273,2]
[370387865,1751991046341,-460.0,0.00020273,2]
[370387867,1751991046350,-460.0,0.00020273,2]
[370387869,1751991046359,-460.0,0.00020273,2]
[370387871,1751991046368,-460.0,0.00020273,2]
[370387873,1751991046377,-460.0,0.00020273,2]
[370387875,1751991046387,-460.0,0.00020273,2]
[370387877,1751991046396,-460.0,0.00020273,2]
[370387879,1751991046405,-460.0,0.00020273,2]
[370387881,1751991046414,-313.04376125,0.00020273,2]
[370387883,1751991046423,-460.0,0.00020273,2]
[370387885,1751991046432,-465.54,0.00020273,2]
[370387887,1751991046442,-460.0,0.00020273,2]
[370387889,1751991046451,-460.0,0.00020273,2]
[370387891,1751991046462,-571.78,0.00020273,2]
[370387893,1751991046476,-460.0,0.00020273,2]
[370387895,1751991046486,-460.0,0.00020273,2]
[370387897,1751991046495,-460.0,0.00020273,2]
[370387899,1751991046504,-460.0,0.00020273,2]
[370387901,1751991046515,-460.0,0.00020273,2]
[370387903,1751991046524,-460.0,0.00020273,2]
[370387905,1751991046533,-460.0,0.00020273,2]
[370387906,1751991046542,-460.0,0.00020273,2]
[370387907,1751991046552,-460.0,0.00020273,2]
[370387910,1751991046562,-460.0,0.00020273,2]
[370387912,1751991046572,-460.0,0.00020273,2]
[370387914,1751991046581,-460.0,0.00020273,2]
[370387916,1751991046591,-2156.23855665,0.00020273,2]
[370387937,1751991046787,-24.72144335,0.00020273,2]
[370387939,1751991046797,-460.0,0.00020273,2]
[370387941,1751991046807,-460.0,0.00020273,2]
[370387943,1751991046816,-578.19,0.00020273,2]
[370387945,1751991046825,-944.08,0.00020273,2]
[370387947,1751991046835,-460.0,0.00020273,2]
[370387949,1751991046844,-460.0,0.00020273,2]
[370387951,1751991046853,-460.0,0.00020273,2]
[370387953,1751991046862,-460.0,0.00020273,2]
[370387955,1751991046872,-460.0,0.00020273,2]
[370387957,1751991046881,-886.41,0.00020273,2]
[370387959,1751991046891,-460.0,0.00020273,2]
[370387961,1751991046900,-460.0,0.00020273,2]
[370387963,1751991046910,-460.0,0.00020273,2]
[370387965,1751991046919,-460.0,0.00020273,2]
[370387967,1751991046928,-1930.55,0.00020273,2]
[370387969,1751991046937,-628.55,0.00020273,2]
[370387971,1751991046947,-460.0,0.00020273,2]
[370387973,1751991046956,-460.0,0.00020273,2]
[370387975,1751991046966,-1204.41,0.00020273,2]
[370387977,1751991046975,-570.12,0.00020273,2]
[370387979,1751991046985,-1609.96,0.00020273,2]
[370387981,1751991046994,-460.0,0.00020273,2]
[370387983,1751991047004,-460.0,0.00020273,2]
[370387985,1751991047013,-494.76,0.00020273,2]
[370387987,1751991047023,-460.0,0.00020273,2]
[370387989,1751991047032,-460.0,0.00020273,2]
[370387991,1751991047041,-460.0,0.00020273,2]
[370387992,1751991047051,-574.65825711,0.00020273,2]
[370387994,1751991047060,-460.0,0.00020273,2]
[370387996,1751991047069,-460.0,0.00020273,2]
[370387998,1751991047079,-460.0,0.00020273,2]
[370388001,1751991047089,-460.0,0.00020273,2]
[370388002,1751991047098,-460.0,0.00020273,2]
[370388005,1751991047108,-460.0,0.00020273,2]
[370388007,1751991047118,-460.0,0.00020273,2]
[370388008,1751991047128,-460.0,0.00020273,2]
[370388010,1751991047138,-743.22,0.00020273,2]
[370388012,1751991047147,-460.0,0.00020273,2]
[370388014,1751991047156,-399.63,0.00020273,2]
[370388016,1751991047166,-460.0,0.00020273,2]
[370388018,1751991047175,-1181.82,0.00020273,2]
[370388020,1751991047185,-460.0,0.00020273,2]
[370388023,1751991047195,-460.0,0.00020273,2]
[370388025,1751991047205,-460.0,0.00020273,2]
[370388027,1751991047215,-460.0,0.00020273,2]
[370388029,1751991047224,-235.88028879,0.00020273,2]
[370388031,1751991047233,-460.0,0.00020273,2]
[370388033,1751991047242,-460.0,0.00020273,2]
[370388034,1751991047252,-460.0,0.00020273,2]
[370388036,1751991047261,-1281.64,0.00020273,2]
[370388038,1751991047270,-602.4,0.00020273,2]
[370388040,1751991047279,-460.0,0.00020273,2]
[370388042,1751991047288,-663.89,0.00020273,2]
[370388044,1751991047297,-460.0,0.00020273,2]
[370388046,1751991047307,-1194.82,0.00020273,2]
[370388048,1751991047316,-1851.08,0.00020273,2]
[370388050,1751991047325,-460.0,0.00020273,2]
[370388052,1751991047336,-460.0,0.00020273,2]
[370388054,1751991047346,-1446.29,0.00020273,2]
[370388056,1751991047355,-460.0,0.00020273,2]
[370388058,1751991047364,-460.0,0.00020273,2]
[370388060,1751991047373,-460.0,0.00020273,2]
[370388062,1751991047383,-460.0,0.00020273,2]
[370388064,1751991047392,-460.0,0.00020273,2]
[370388066,1751991047402,-490.97,0.00020273,2]
[370388068,1751991047411,-460.0,0.00020273,2]
[370388070,1751991047422,-740.17,0.00020273,2]
[370388073,1751991047432,-460.0,0.00020273,2]
[370388074,1751991047441,-460.0,0.00020273,2]
[370388077,1751991047451,-460.0,0.00020273,2]
[370388078,1751991047461,-1397.61,0.00020273,2]
[370388080,1751991047475,-531.06,0.00020273,2]
[370388082,1751991047484,-460.0,0.00020273,2]
[370388084,1751991047494,-460.0,0.00020273,2]
[370388086,1751991047504,-511.87995822,0.0002034,2]
[370388088,1751991047514,-500.0,0.0002034,2]
[370388090,1751991047524,-2226.15026749,0.00020348,3]
[370388092,1751991047533,-151.0,0.000204,3]
[370388094,1751991047544,-151.0,0.000204,4]
[370388096,1751991047554,-500.0,0.00020433,2]
[370388098,1751991047564,-500.0,0.00020525,2]
[370388100,1751991047573,-160.0,0.0002054,2]
[370388102,1751991047583,-848.40570879,0.0002054,2]
[370388104,1751991047595,-837.89306043,0.0002054,2]
[370388106,1751991047605,-230.51100374,0.0002054,2]
[370388108,1751991047615,-160.0,0.0002054,2]
[370388110,1751991047625,-160.0,0.0002054,2]
[370388112,1751991047635,-160.0,0.0002054,2]
[370388114,1751991047646,-215.2437778,0.0002054,2]
[370388116,1751991047656,-12586.7184932,0.0002054,2]
[370388118,1751991047666,-214.10276668,0.0002054,2]
[370388120,1751991047676,-160.0,0.00020541,2]
[370388122,1751991047686,-160.0,0.00020541,2]
[370388124,1751991047698,-160.0,0.00020541,2]
[370388126,1751991047708,-160.0,0.00020541,2]
[370388128,1751991047717,-460.0,0.00020547,2]
[370388130,1751991047727,-460.0,0.00020547,2]
[370388132,1751991047736,-460.0,0.00020547,2]
[370388134,1751991047747,-460.0,0.00020547,2]
[370388136,1751991047756,-460.0,0.00020547,2]
[370388138,1751991047766,-460.0,0.00020547,2]
[370388140,1751991047775,-460.0,0.00020547,2]
[370388142,1751991047784,-460.0,0.00020547,2]
[370388144,1751991047793,-460.0,0.00020547,2]
[370388146,1751991047802,-175.82825009,0.00020547,2]
[370388148,1751991047812,-460.0,0.00020547,2]
[370388150,1751991047821,-460.0,0.00020547,2]
[370388152,1751991047830,-460.0,0.00020547,2]
[370388154,1751991047843,-460.0,0.00020547,2]
[370388156,1751991047853,-460.0,0.00020547,2]
[370388158,1751991047862,-257.61468776,0.00020547,2]
[370388160,1751991047872,-460.0,0.00020547,2]
[370388162,1751991047882,-460.0,0.00020547,2]
[370388164,1751991047891,-460.0,0.00020547,2]
[370388166,1751991047902,-460.0,0.00020547,2]
[370388168,1751991047913,-460.0,0.00020547,2]
[370388170,1751991047923,-460.0,0.00020547,2]
[370388172,1751991047932,-460.0,0.00020547,2]
[370388174,1751991047942,-460.0,0.00020547,2]
[370388176,1751991047951,-571.78,0.00020547,2]
[370388178,1751991047960,-460.0,0.00020547,2]
[370388180,1751991047970,-460.0,0.00020547,2]
[370388182,1751991047979,-460.0,0.00020547,2]
[370388184,1751991047988,-460.0,0.00020547,2]
[370388185,1751991047997,-336.36,0.00020547,2]
[370388186,1751991048006,-460.0,0.00020547,2]
[370388187,1751991048015,-460.0,0.00020547,2]
[370388188,1751991048024,-460.0,0.00020547,2]
[370388189,1751991048034,-460.0,0.00020547,2]
[370388190,1751991048043,-2180.96,0.00020547,2]
[370388191,1751991048051,-361.30350894,0.00020547,2]
[370388192,1751991048065,-98.69649106,0.00020547,2]
[370388193,1751991048074,-460.0,0.00020547,2]
[370388194,1751991048083,-944.08,0.00020547,2]
[370388195,1751991048093,-578.19,0.00020547,2]
[370388196,1751991048102,-460.0,0.00020547,2]
[370388197,1751991048111,-460.0,0.00020547,2]
[370388198,1751991048120,-460.0,0.00020547,2]
[370388199,1751991048129,-460.0,0.00020547,2]
[370388200,1751991048139,-339.71588126,0.00020547,2]
[370388201,1751991048150,-120.28411874,0.00020547,2]
[370388202,1751991048159,-656.42242866,0.00020547,2]
[370388203,1751991048171,-229.98757134,0.00020547,2]
[370388204,1751991048180,-407.73005751,0.00020547,2]
[370388207,1751991048284,-52.26994249,0.00020547,2]
[370388209,1751991048294,-460.0,0.00020547,2]
[370388211,1751991048303,-460.0,0.00020547,2]
[370388213,1751991048312,-460.0,0.00020547,2]
[370388215,1751991048321,-1930.55,0.00020547,2]
[370388217,1751991048330,-628.55,0.00020547,2]
[370388219,1751991048341,-460.0,0.00020547,2]
[370388221,1751991048350,-460.0,0.00020547,2]
[370388223,1751991048360,-1204.41,0.00020547,2]
[370388225,1751991048369,-570.12,0.00020547,2]
[370388227,1751991048379,-1609.96,0.00020547,2]
[370388229,1751991048387,-460.0,0.00020547,2]
[370388231,1751991048397,-460.0,0.00020547,2]
[370388233,1751991048406,-494.76,0.00020547,2]
[370388235,1751991048416,-460.0,0.00020547,2]
[370388237,1751991048427,-460.0,0.00020547,2]
[370388239,1751991048436,-460.0,0.00020547,2]
[370388241,1751991048445,-460.0,0.00020547,2]
[370388243,1751991048454,-460.0,0.00020547,2]
[370388245,1751991048468,-460.0,0.00020547,2]
[370388247,1751991048478,-460.0,0.00020547,2]
[370388249,1751991048489,-460.0,0.00020547,2]
[370388251,1751991048498,-460.0,0.00020547,2]
[370388253,1751991048509,-460.0,0.00020547,2]
[370388255,1751991048519,-743.22,0.00020547,2]
[370388257,1751991048528,-460.0,0.00020547,2]
[370388259,1751991048539,-1181.82,0.00020547,2]
[370388261,1751991048550,-460.0,0.00020547,2]
[370388263,1751991048560,-460.0,0.00020547,2]
[370388265,1751991048569,-460.0,0.00020547,2]
[370388267,1751991048579,-460.0,0.00020547,2]
[370388269,1751991048590,-460.0,0.00020547,2]
[370388271,1751991048600,-1281.64,0.00020547,2]
[370388273,1751991048609,-602.4,0.00020547,2]
[370388275,1751991048619,-460.0,0.00020547,2]
[370388277,1751991048628,-663.89,0.00020547,2]
[370388279,1751991048638,-460.0,0.00020547,2]
[370388281,1751991048647,-1194.82,0.00020547,2]
[370388283,1751991048657,-1851.08,0.00020547,2]
[370388285,1751991048667,-460.0,0.00020547,2]
[370388287,1751991048676,-850.51005909,0.00020547,2]
[370388289,1751991048688,-458.92412233,0.00020547,2]
[370388318,1751991048968,-136.85581858,0.00020547,2]
[370388320,1751991048978,-500.0,0.00020547,14]
[370388322,1751991048988,-460.0,0.00020547,2]
[370388324,1751991048998,-460.0,0.00020547,2]
[370388326,1751991049007,-460.0,0.00020547,2]
[370388328,1751991049017,-460.0,0.00020547,2]
[370388330,1751991049026,-460.0,0.00020547,2]
[370388332,1751991049036,-490.97,0.00020547,2]
[370388334,1751991049045,-460.0,0.00020547,2]
[370388336,1751991049054,-403.78536991,0.00020547,2]
[370388338,1751991049066,-336.38463009,0.00020547,2]
[370388340,1751991049075,-179.32465466,0.00020547,2]
[370388343,1751991049088,-280.67534534,0.00020547,2]
[370388345,1751991049098,-460.0,0.00020547,2]
[370388346,1751991049107,-460.0,0.00020547,2]
[370388349,1751991049117,-1397.61,0.00020547,2]
[370388351,1751991049127,-531.06,0.00020547,2]
[370388352,1751991049136,-460.0,0.00020547,2]
[370388354,1751991049146,-460.0,0.00020547,2]
[370388357,1751991049155,-522.41606942,0.00020582,2]
[370388359,1751991049165,-151.0,0.000206,3]
[370388361,1751991049174,-2474.22746086,0.00020613,2]
[370388363,1751991049183,-500.0,0.00020618,2]
[370388365,1751991049192,-500.0,0.0002071,2]
[370388367,1751991049202,-500.79233465,0.00020711,2]
[370388369,1751991049211,-500.0,0.00020739,2]
[370388371,1751991049221,-963.143,0.00020764,2]
[370388373,1751991049230,-178.092,0.00020764,2]
[370388375,1751991049240,-500.0,0.00020803,2]
[370388377,1751991049249,-159.66946847,0.00020821,2]
[370388379,1751991049258,-460.0,0.00020821,2]
[370388381,1751991049267,-460.0,0.00020821,2]
[370388383,1751991049276,-460.0,0.00020821,2]
[370388385,1751991049286,-460.0,0.00020821,2]
[370388387,1751991049295,-466.64220725,0.00020821,2]
[370388389,1751991049304,-460.0,0.00020821,2]
[370388391,1751991049314,-460.0,0.00020821,2]
[370388393,1751991049323,-460.0,0.00020821,2]
[370388395,1751991049332,-460.0,0.00020821,2]
[370388397,1751991049344,-460.0,0.00020821,2]
[370388399,1751991049353,-460.0,0.00020821,2]
[370388401,1751991049362,-460.0,0.00020821,2]
[370388403,1751991049372,-460.0,0.00020821,2]
[370388405,1751991049381,-460.0,0.00020821,2]
[370388407,1751991049390,-460.0,0.00020821,2]
[370388409,1751991049400,-460.0,0.00020821,2]
[370388411,1751991049409,-460.0,0.00020821,2]
[370388413,1751991049419,-460.0,0.00020821,2]
[370388415,1751991049428,-460.0,0.00020821,2]
[370388417,1751991049437,-460.0,0.00020821,2]
[370388419,1751991049446,-571.78,0.00020821,2]
[370388421,1751991049455,-460.0,0.00020821,2]
[370388423,1751991049465,-460.0,0.00020821,2]
[370388425,1751991049478,-460.0,0.00020821,2]
[370388427,1751991049487,-460.0,0.00020821,2]
[370388429,1751991049496,-460.0,0.00020821,2]
[370388431,1751991049505,-460.0,0.00020821,2]
[370388433,1751991049517,-2180.96,0.00020821,2]
[370388435,1751991049526,-460.0,0.00020821,2]
[370388437,1751991049535,-460.0,0.00020821,2]
[370388439,1751991049546,-578.19,0.00020821,2]
[370388441,1751991049555,-944.08,0.00020821,2]
[370388443,1751991049565,-460.0,0.00020821,2]
[370388445,1751991049576,-460.0,0.00020821,2]
[370388447,1751991049585,-460.0,0.00020821,2]